[Event "Titled Tuesday Blitz December 27 Early 2022"]
[White "Weetik, Vjacheslav"]
[Black "Hnydiuk, Aleksander"]
[WhiteFideId "4153472"]
[BlackFideId "1109057"]
[WhiteElo "2423"]
[BlackElo "2363"]
[Result "0-1"]
[Round "06"]
[TimeControl "180+2"]
[Date "2022.12.27"]
[WhiteClock "0:00:05"]
[BlackClock "0:00:50"]

1. d4 {[%clk 0:02:59]}  Nf6 {[%clk 0:02:59]} 2. Nf3 {[%clk 0:02:59]}  g6 {[%clk 0:02:59]} 3. c4 {[%clk 0:02:58]}  Bg7 {[%clk 0:02:59]} 4. g3 {[%clk 0:02:59]}  O-O {[%clk 0:02:59]} 5. Bg2 {[%clk 0:03:00]}  Nc6 {[%clk 0:02:54]} 6. O-O {[%clk 0:02:51]}  a6 {[%clk 0:02:54]} 7. Nc3 {[%clk 0:02:43]}  Rb8 {[%clk 0:02:54]} 8. Rb1 {[%clk 0:02:21]}  b5 {[%clk 0:02:52]} 9. cxb5 {[%clk 0:02:20]}  axb5 {[%clk 0:02:53]} 10. b4 {[%clk 0:02:20]}  d6 {[%clk 0:02:31]} 11. Re1 {[%clk 0:02:15]}  e5 {[%clk 0:02:22]} 12. dxe5 {[%clk 0:01:44]}  dxe5 {[%clk 0:02:22]} 13. Be3 {[%clk 0:01:41]}  Bf5 {[%clk 0:02:19]} 14. Rb2 {[%clk 0:01:32]}  Ng4 {[%clk 0:02:15]} 15. Bc5 {[%clk 0:01:30]}  e4 {[%clk 0:02:15]} 16. Rd2 {[%clk 0:01:21]}  exf3 {[%clk 0:02:08]} 17. exf3 {[%clk 0:00:53]}  Bxc3 {[%clk 0:02:01]} 18. Rxd8 {[%clk 0:00:50]}  Rfxd8 {[%clk 0:02:02]} 19. Qc1 {[%clk 0:00:44]}  Bxe1 {[%clk 0:01:46]} 20. fxg4 {[%clk 0:00:44]}  Bd2 {[%clk 0:01:37]} 21. Qb2 {[%clk 0:00:37]}  Bxb4 {[%clk 0:01:21]} 22. Bxc6 {[%clk 0:00:22]}  Bxc5 {[%clk 0:01:13]} 23. gxf5 {[%clk 0:00:22]}  Rd1+ {[%clk 0:01:07]} 24. Kg2 {[%clk 0:00:22]}  Rbd8 {[%clk 0:01:07]} 25. Qxb5 {[%clk 0:00:13]}  Bb6 {[%clk 0:01:05]} 26. f6 {[%clk 0:00:08]}  R1d2 {[%clk 0:01:02]} 27. Qe5 {[%clk 0:00:08]}  Rxf2+ {[%clk 0:00:57]} 28. Kh3 {[%clk 0:00:09]}  Bd4 {[%clk 0:00:56]} 29. Qe7 {[%clk 0:00:08]}  Bxf6 {[%clk 0:00:55]} 30. Qxc7 {[%clk 0:00:09]}  h5 {[%clk 0:00:51]} 31. Qb7 {[%clk 0:00:05]}  Rdd2 {[%clk 0:00:50]} 0-1


[Site "https://www.chess.com"]

[Event "Titled Tuesday Blitz December 27 Early 2022"]
[White "Wickramasinghe, Minethma Lasandi"]
[Black "Legenia, Artem"]
[WhiteFideId "9966170"]
[BlackFideId "14136945"]
[WhiteElo "1483"]
[BlackElo "2092"]
[Result "0-1"]
[Round "06"]
[TimeControl "180+2"]
[Date "2022.12.27"]
[WhiteClock "0:00:42"]
[BlackClock "0:01:53"]

1. e4 {[%clk 0:02:56]}  c5 {[%clk 0:02:59]} 2. c3 {[%clk 0:02:50]}  e6 {[%clk 0:03:00]} 3. d4 {[%clk 0:02:49]}  cxd4 {[%clk 0:03:00]} 4. cxd4 {[%clk 0:02:49]}  Nf6 {[%clk 0:03:00]} 5. Nc3 {[%clk 0:02:49]}  d5 {[%clk 0:02:57]} 6. e5 {[%clk 0:02:48]}  Nfd7 {[%clk 0:02:57]} 7. Bd3 {[%clk 0:02:47]}  Nc6 {[%clk 0:02:57]} 8. Nge2 {[%clk 0:02:43]}  g6 {[%clk 0:02:45]} 9. O-O {[%clk 0:02:40]}  a6 {[%clk 0:02:46]} 10. a3 {[%clk 0:02:25]}  Bg7 {[%clk 0:02:46]} 11. Be3 {[%clk 0:02:24]}  f6 {[%clk 0:02:45]} 12. f4 {[%clk 0:02:21]}  O-O {[%clk 0:02:45]} 13. Qd2 {[%clk 0:02:12]}  b5 {[%clk 0:02:40]} 14. b4 {[%clk 0:02:08]}  Nb6 {[%clk 0:02:28]} 15. Ng3 {[%clk 0:01:50]}  Nc4 {[%clk 0:02:27]} 16. Bxc4 {[%clk 0:01:49]}  dxc4 {[%clk 0:02:27]} 17. Rad1 {[%clk 0:01:38]}  f5 {[%clk 0:02:22]} 18. d5 {[%clk 0:01:36]}  exd5 {[%clk 0:02:21]} 19. Nxd5 {[%clk 0:01:35]}  Be6 {[%clk 0:02:19]} 20. Bc5 {[%clk 0:01:33]}  Re8 {[%clk 0:02:11]} 21. Ne3 {[%clk 0:01:28]}  Qxd2 {[%clk 0:02:08]} 22. Rxd2 {[%clk 0:01:29]}  Rad8 {[%clk 0:02:07]} 23. Rfd1 {[%clk 0:01:29]}  Bf8 {[%clk 0:02:04]} 24. Bb6 {[%clk 0:01:24]}  Rxd2 {[%clk 0:02:00]} 25. Rxd2 {[%clk 0:01:25]}  Nxe5 {[%clk 0:02:00]} 26. fxe5 {[%clk 0:01:22]}  f4 {[%clk 0:02:00]} 27. Nef1 {[%clk 0:01:17]}  fxg3 {[%clk 0:02:00]} 28. Nxg3 {[%clk 0:01:18]}  Bg7 {[%clk 0:01:57]} 29. Bc7 {[%clk 0:01:14]}  Rc8 {[%clk 0:01:56]} 30. Bd6 {[%clk 0:01:12]}  c3 {[%clk 0:01:56]} 31. Rc2 {[%clk 0:01:10]}  Bb3 {[%clk 0:01:56]} 32. Rc1 {[%clk 0:01:10]}  Bh6 {[%clk 0:01:56]} 33. Rf1 {[%clk 0:01:07]}  c2 {[%clk 0:01:56]} 34. Ne2 {[%clk 0:01:07]}  Bc4 {[%clk 0:01:53]} 35. Kf2 {[%clk 0:00:43]}  Bxe2 {[%clk 0:01:52]} 36. Kxe2 {[%clk 0:00:43]}  c1=Q {[%clk 0:01:53]} 37. Rxc1 {[%clk 0:00:42]}  Bxc1 {[%clk 0:01:53]} 38. e6 {[%clk 0:00:42]}  Re8 {[%clk 0:01:53]} 39. e7 {[%clk 0:00:42]}  Bg5 {[%clk 0:01:53]} 0-1


[Site "https://www.chess.com"]

[Event "Titled Tuesday Blitz December 27 Early 2022"]
[White "Xu, Yi"]
[Black "Starozhilov, Leonid"]
[WhiteFideId "8605564"]
[BlackFideId "14106752"]
[WhiteElo "2527"]
[BlackElo "2313"]
[Result "1-0"]
[Round "06"]
[TimeControl "180+2"]
[Date "2022.12.27"]
[WhiteClock "0:00:45"]
[BlackClock "0:00:02"]

1. e4 {[%clk 0:02:57]}  g6 {[%clk 0:02:58]} 2. d4 {[%clk 0:02:56]}  Bg7 {[%clk 0:02:59]} 3. Nc3 {[%clk 0:02:54]}  d6 {[%clk 0:03:00]} 4. f4 {[%clk 0:02:53]}  Nf6 {[%clk 0:02:51]} 5. Bd3 {[%clk 0:02:52]}  O-O {[%clk 0:02:49]} 6. Nf3 {[%clk 0:02:50]}  Na6 {[%clk 0:02:49]} 7. O-O {[%clk 0:02:48]}  c5 {[%clk 0:02:50]} 8. d5 {[%clk 0:02:47]}  Bg4 {[%clk 0:02:48]} 9. Bc4 {[%clk 0:02:45]}  Rb8 {[%clk 0:02:36]} 10. a4 {[%clk 0:02:39]}  Nc7 {[%clk 0:02:32]} 11. h3 {[%clk 0:02:37]}  Bxf3 {[%clk 0:02:28]} 12. Qxf3 {[%clk 0:02:38]}  a6 {[%clk 0:02:22]} 13. a5 {[%clk 0:02:36]}  Nd7 {[%clk 0:02:22]} 14. Na4 {[%clk 0:02:33]}  Nb5 {[%clk 0:02:16]} 15. Bd2 {[%clk 0:02:30]}  Nd4 {[%clk 0:02:12]} 16. Qd3 {[%clk 0:02:28]}  b5 {[%clk 0:01:43]} 17. axb6 {[%clk 0:02:27]}  Nxb6 {[%clk 0:01:43]} 18. Nxb6 {[%clk 0:02:22]}  Qxb6 {[%clk 0:01:30]} 19. Rfb1 {[%clk 0:01:55]}  Ra8 {[%clk 0:01:11]} 20. Kh1 {[%clk 0:01:48]}  Rfb8 {[%clk 0:01:10]} 21. b3 {[%clk 0:01:45]}  a5 {[%clk 0:01:01]} 22. Ra4 {[%clk 0:01:42]}  Nb5 {[%clk 0:00:59]} 23. Re1 {[%clk 0:01:28]}  Nc7 {[%clk 0:00:51]} 24. e5 {[%clk 0:01:21]}  Rd8 {[%clk 0:00:46]} 25. Bc3 {[%clk 0:01:12]}  dxe5 {[%clk 0:00:44]} 26. fxe5 {[%clk 0:01:09]}  Nxd5 {[%clk 0:00:37]} 27. Bxd5 {[%clk 0:01:09]}  e6 {[%clk 0:00:35]} 28. Bxa8 {[%clk 0:01:09]}  Rxd3 {[%clk 0:00:29]} 29. cxd3 {[%clk 0:01:09]}  Qxb3 {[%clk 0:00:23]} 30. Rc4 {[%clk 0:01:09]}  Bf8 {[%clk 0:00:14]} 31. Ra1 {[%clk 0:01:05]}  Qc2 {[%clk 0:00:08]} 32. Be4 {[%clk 0:01:05]}  Qe2 {[%clk 0:00:04]} 33. Bxa5 {[%clk 0:01:00]}  h5 {[%clk 0:00:05]} 34. Bc7 {[%clk 0:00:58]}  Bh6 {[%clk 0:00:03]} 35. Bd6 {[%clk 0:00:54]}  Bf4 {[%clk 0:00:02]} 36. Bxg6 {[%clk 0:00:45]} 1-0


[Site "https://www.chess.com"]

[Event "Titled Tuesday Blitz December 27 Early 2022"]
[White "Akylbekov, Nasyr"]
[Black "Toropov, Pavel"]
[WhiteFideId "13800353"]
[BlackFideId "24129178"]
[WhiteElo "2239"]
[BlackElo "2336"]
[Result "0-1"]
[Round "07"]
[TimeControl "180+2"]
[Date "2022.12.27"]
[WhiteClock "0:00:11"]
[BlackClock "0:00:10"]

1. e4 {[%clk 0:03:00]}  e6 {[%clk 0:02:57]} 2. d4 {[%clk 0:03:00]}  d5 {[%clk 0:02:58]} 3. Nc3 {[%clk 0:03:01]}  dxe4 {[%clk 0:02:58]} 4. Nxe4 {[%clk 0:03:01]}  Nd7 {[%clk 0:02:58]} 5. Nf3 {[%clk 0:03:01]}  Ngf6 {[%clk 0:02:58]} 6. Ng3 {[%clk 0:03:02]}  b6 {[%clk 0:02:58]} 7. Be2 {[%clk 0:03:03]}  Bb7 {[%clk 0:02:58]} 8. O-O {[%clk 0:03:03]}  Be7 {[%clk 0:02:58]} 9. Ne5 {[%clk 0:03:03]}  O-O {[%clk 0:02:58]} 10. Bf3 {[%clk 0:03:04]}  Qc8 {[%clk 0:02:42]} 11. Bg5 {[%clk 0:03:00]}  Nxe5 {[%clk 0:02:19]} 12. dxe5 {[%clk 0:02:54]}  Bxf3 {[%clk 0:02:11]} 13. Qxf3 {[%clk 0:02:26]}  Nd5 {[%clk 0:02:12]} 14. Bxe7 {[%clk 0:02:25]}  Nxe7 {[%clk 0:02:11]} 15. Rfd1 {[%clk 0:02:26]}  Rd8 {[%clk 0:02:03]} 16. Rxd8+ {[%clk 0:02:18]}  Qxd8 {[%clk 0:02:03]} 17. Rd1 {[%clk 0:02:19]}  Qe8 {[%clk 0:02:02]} 18. Qb7 {[%clk 0:02:16]}  Qc6 {[%clk 0:02:00]} 19. Qxc6 {[%clk 0:02:05]}  Nxc6 {[%clk 0:02:00]} 20. Rd7 {[%clk 0:02:04]}  Rc8 {[%clk 0:01:58]} 21. f4 {[%clk 0:01:58]}  Kf8 {[%clk 0:01:58]} 22. Ne4 {[%clk 0:01:48]}  Nb4 {[%clk 0:01:57]} 23. Ng5 {[%clk 0:01:39]}  h6 {[%clk 0:01:46]} 24. Nf3 {[%clk 0:01:15]}  Nd5 {[%clk 0:01:44]} 25. f5 {[%clk 0:01:10]}  Ne7 {[%clk 0:01:12]} 26. fxe6 {[%clk 0:01:08]}  fxe6 {[%clk 0:01:13]} 27. c4 {[%clk 0:01:02]}  Ke8 {[%clk 0:01:12]} 28. Rd2 {[%clk 0:01:02]}  Nc6 {[%clk 0:01:12]} 29. Kf2 {[%clk 0:01:00]}  Ke7 {[%clk 0:01:12]} 30. Ke3 {[%clk 0:00:59]}  Rf8 {[%clk 0:01:12]} 31. a3 {[%clk 0:00:40]}  g5 {[%clk 0:01:03]} 32. h3 {[%clk 0:00:33]}  Rf5 {[%clk 0:00:58]} 33. Ke4 {[%clk 0:00:32]}  Rf4+ {[%clk 0:00:57]} 34. Ke3 {[%clk 0:00:33]}  Rxc4 {[%clk 0:00:55]} 35. b4 {[%clk 0:00:31]}  a5 {[%clk 0:00:50]} 36. Kd3 {[%clk 0:00:27]}  Rf4 {[%clk 0:00:47]} 37. Rc2 {[%clk 0:00:27]}  Kd7 {[%clk 0:00:44]} 38. b5 {[%clk 0:00:27]}  Ne7 {[%clk 0:00:43]} 39. Nd4 {[%clk 0:00:20]}  Nd5 {[%clk 0:00:24]} 40. Nc6 {[%clk 0:00:20]}  Ra4 {[%clk 0:00:20]} 41. Nb8+ {[%clk 0:00:19]}  Ke8 {[%clk 0:00:18]} 42. Na6 {[%clk 0:00:19]}  Rxa3+ {[%clk 0:00:18]} 43. Ke4 {[%clk 0:00:19]}  Ra4+ {[%clk 0:00:18]} 44. Kd3 {[%clk 0:00:19]}  Kd8 {[%clk 0:00:14]} 45. Rf2 {[%clk 0:00:17]}  Nb4+ {[%clk 0:00:13]} 46. Nxb4 {[%clk 0:00:17]}  Rxb4 {[%clk 0:00:13]} 47. Rf8+ {[%clk 0:00:16]}  Kd7 {[%clk 0:00:13]} 48. Rf7+ {[%clk 0:00:16]}  Kc8 {[%clk 0:00:13]} 49. Rf6 {[%clk 0:00:16]}  Rxb5 {[%clk 0:00:13]} 50. Rxe6 {[%clk 0:00:16]}  a4 {[%clk 0:00:14]} 51. Kc4 {[%clk 0:00:16]}  Ra5 {[%clk 0:00:12]} 52. Rf6 {[%clk 0:00:14]}  a3 {[%clk 0:00:11]} 53. e6 {[%clk 0:00:11]}  a2 {[%clk 0:00:11]} 54. Rf8+ {[%clk 0:00:10]}  Kb7 {[%clk 0:00:11]} 55. e7 {[%clk 0:00:09]}  Re5 {[%clk 0:00:11]} 56. e8=Q {[%clk 0:00:10]}  Rxe8 {[%clk 0:00:09]} 57. Rxe8 {[%clk 0:00:11]}  a1=Q {[%clk 0:00:10]} 58. Kd5 {[%clk 0:00:11]}  Qa2+ {[%clk 0:00:10]} 59. Ke5 {[%clk 0:00:11]}  Qe2+ {[%clk 0:00:10]} 0-1


[Site "https://www.chess.com"]

[Event "Titled Tuesday Blitz December 27 Early 2022"]
[White "Albertini, Luca"]
[Black "Kvaloy, Aksel Bu"]
[WhiteFideId "847038"]
[BlackFideId "1528815"]
[WhiteElo "2084"]
[BlackElo "2321"]
[Result "1-0"]
[Round "07"]
[TimeControl "180+2"]
[Date "2022.12.27"]
[WhiteClock "0:00:31"]
[BlackClock "0:00:32"]

1. e4 {[%clk 0:02:59]}  e5 {[%clk 0:02:58]} 2. Nf3 {[%clk 0:02:57]}  Nf6 {[%clk 0:02:59]} 3. Nc3 {[%clk 0:02:55]}  Nc6 {[%clk 0:02:59]} 4. Bc4 {[%clk 0:02:55]}  Nxe4 {[%clk 0:02:52]} 5. Bxf7+ {[%clk 0:02:54]}  Kxf7 {[%clk 0:02:51]} 6. Nxe4 {[%clk 0:02:55]}  Be7 {[%clk 0:02:51]} 7. d4 {[%clk 0:02:54]}  exd4 {[%clk 0:02:47]} 8. Nxd4 {[%clk 0:02:54]}  Nxd4 {[%clk 0:02:47]} 9. Qxd4 {[%clk 0:02:51]}  d5 {[%clk 0:02:47]} 10. Nc3 {[%clk 0:02:39]}  c6 {[%clk 0:02:40]} 11. O-O {[%clk 0:02:33]}  Bf6 {[%clk 0:02:40]} 12. Qd3 {[%clk 0:02:26]}  Be6 {[%clk 0:02:33]} 13. Ne2 {[%clk 0:02:26]}  Qd7 {[%clk 0:02:31]} 14. Nd4 {[%clk 0:02:24]}  g6 {[%clk 0:02:22]} 15. Nxe6 {[%clk 0:02:20]}  Qxe6 {[%clk 0:02:23]} 16. Bh6 {[%clk 0:02:18]}  Rhe8 {[%clk 0:02:23]} 17. g3 {[%clk 0:02:10]}  Qe4 {[%clk 0:02:20]} 18. Qb3 {[%clk 0:02:06]}  Re7 {[%clk 0:02:12]} 19. Rae1 {[%clk 0:02:03]}  Qxe1 {[%clk 0:02:08]} 20. Rxe1 {[%clk 0:02:04]}  Rxe1+ {[%clk 0:02:08]} 21. Kg2 {[%clk 0:02:05]}  b5 {[%clk 0:02:05]} 22. a4 {[%clk 0:02:03]}  a6 {[%clk 0:02:05]} 23. Be3 {[%clk 0:02:00]}  Kg7 {[%clk 0:01:57]} 24. c3 {[%clk 0:01:59]}  Re8 {[%clk 0:01:49]} 25. Qc2 {[%clk 0:01:50]}  Ra1 {[%clk 0:01:46]} 26. axb5 {[%clk 0:01:36]}  axb5 {[%clk 0:01:47]} 27. h4 {[%clk 0:01:30]}  h5 {[%clk 0:01:45]} 28. Qb3 {[%clk 0:01:28]}  Raa8 {[%clk 0:01:42]} 29. Qb4 {[%clk 0:01:28]}  Re6 {[%clk 0:01:42]} 30. Qc5 {[%clk 0:01:27]}  Rae8 {[%clk 0:01:41]} 31. b3 {[%clk 0:01:25]}  Kf7 {[%clk 0:01:24]} 32. c4 {[%clk 0:01:23]}  dxc4 {[%clk 0:01:23]} 33. bxc4 {[%clk 0:01:24]}  Be7 {[%clk 0:01:22]} 34. Qd4 {[%clk 0:01:09]}  b4 {[%clk 0:01:17]} 35. c5 {[%clk 0:01:05]}  Rb8 {[%clk 0:01:16]} 36. Qf4+ {[%clk 0:01:05]}  Bf6 {[%clk 0:01:10]} 37. Qxb8 {[%clk 0:01:05]}  Bc3 {[%clk 0:01:11]} 38. Qc7+ {[%clk 0:01:02]}  Kg8 {[%clk 0:01:09]} 39. Qd7 {[%clk 0:00:59]}  Rf6 {[%clk 0:01:04]} 40. Bg5 {[%clk 0:00:58]}  Rf7 {[%clk 0:00:59]} 41. Qxc6 {[%clk 0:00:57]}  Kh7 {[%clk 0:00:59]} 42. Qd5 {[%clk 0:00:55]}  Rc7 {[%clk 0:00:58]} 43. c6 {[%clk 0:00:54]}  b3 {[%clk 0:00:58]} 44. Qxb3 {[%clk 0:00:52]}  Rxc6 {[%clk 0:00:57]} 45. Qf7+ {[%clk 0:00:52]}  Bg7 {[%clk 0:00:57]} 46. Qe8 {[%clk 0:00:48]}  Rc5 {[%clk 0:00:53]} 47. Qe7 {[%clk 0:00:45]}  Rf5 {[%clk 0:00:51]} 48. Be3 {[%clk 0:00:43]}  Kg8 {[%clk 0:00:46]} 49. Qd8+ {[%clk 0:00:43]}  Kh7 {[%clk 0:00:46]} 50. Bd4 {[%clk 0:00:40]}  Bxd4 {[%clk 0:00:44]} 51. Qxd4 {[%clk 0:00:41]}  Rf7 {[%clk 0:00:44]} 52. Qd5 {[%clk 0:00:41]}  Kg7 {[%clk 0:00:43]} 53. f4 {[%clk 0:00:41]}  Rf5 {[%clk 0:00:41]} 54. Qd7+ {[%clk 0:00:39]}  Kh6 {[%clk 0:00:41]} 55. Kf3 {[%clk 0:00:37]}  Rf6 {[%clk 0:00:39]} 56. Qe7 {[%clk 0:00:34]}  Rf5 {[%clk 0:00:36]} 57. Qe8 {[%clk 0:00:32]}  Kh7 {[%clk 0:00:35]} 58. Ke4 {[%clk 0:00:32]}  Kh6 {[%clk 0:00:32]} 59. Qh8# {[%clk 0:00:31]} 1-0


[Site "https://www.chess.com"]

[Event "Titled Tuesday Blitz December 27 Early 2022"]
[White "Andreev, Konstantin"]
[Black "Yaran, Siar"]
[WhiteFideId "24239305"]
[BlackFideId "6323006"]
[WhiteElo "2195"]
[BlackElo "2288"]
[Result "0-1"]
[Round "07"]
[TimeControl "180+2"]
[Date "2022.12.27"]
[WhiteClock "0:00:33"]
[BlackClock "0:00:31"]

1. e4 {[%clk 0:02:56]}  e5 {[%clk 0:02:59]} 2. Nf3 {[%clk 0:02:54]}  Nc6 {[%clk 0:02:59]} 3. Bc4 {[%clk 0:02:54]}  Bc5 {[%clk 0:02:58]} 4. c3 {[%clk 0:02:54]}  Nf6 {[%clk 0:02:59]} 5. d4 {[%clk 0:02:54]}  exd4 {[%clk 0:03:00]} 6. b4 {[%clk 0:02:54]}  Bb6 {[%clk 0:02:56]} 7. e5 {[%clk 0:02:53]}  d5 {[%clk 0:02:56]} 8. exf6 {[%clk 0:02:53]}  dxc4 {[%clk 0:02:56]} 9. Qe2+ {[%clk 0:02:53]}  Be6 {[%clk 0:02:56]} 10. b5 {[%clk 0:02:53]}  d3 {[%clk 0:02:55]} 11. Qe4 {[%clk 0:02:53]}  Nb4 {[%clk 0:02:51]} 12. O-O {[%clk 0:02:51]}  Qd5 {[%clk 0:02:14]} 13. fxg7 {[%clk 0:02:46]}  Rg8 {[%clk 0:02:12]} 14. Qxh7 {[%clk 0:02:44]}  O-O-O {[%clk 0:02:12]} 15. Bg5 {[%clk 0:02:38]}  Bf5 {[%clk 0:02:07]} 16. Qh6 {[%clk 0:02:16]}  Rd6 {[%clk 0:01:25]} 17. Qh8 {[%clk 0:02:10]}  f6 {[%clk 0:01:24]} 18. Bf4 {[%clk 0:01:32]}  Rdd8 {[%clk 0:01:21]} 19. Qh6 {[%clk 0:01:31]}  Nc2 {[%clk 0:01:16]} 20. Nbd2 {[%clk 0:01:27]}  Nxa1 {[%clk 0:01:15]} 21. Rxa1 {[%clk 0:01:27]}  Qf7 {[%clk 0:01:15]} 22. Nh4 {[%clk 0:01:09]}  Be6 {[%clk 0:01:05]} 23. Be3 {[%clk 0:00:52]}  Rxg7 {[%clk 0:01:00]} 24. a4 {[%clk 0:00:50]}  Ba5 {[%clk 0:00:52]} 25. Rc1 {[%clk 0:00:45]}  Rdg8 {[%clk 0:00:44]} 26. g3 {[%clk 0:00:43]}  Rh7 {[%clk 0:00:33]} 27. Qf4 {[%clk 0:00:43]}  Rg4 {[%clk 0:00:33]} 28. Qf3 {[%clk 0:00:34]}  Rhxh4 {[%clk 0:00:32]} 29. Kh1 {[%clk 0:00:33]}  Bd5 {[%clk 0:00:31]} 0-1


[Site "https://www.chess.com"]

[Event "Titled Tuesday Blitz December 27 Early 2022"]
[White "Araujo, Everson De Moura"]
[Black "Vifleemskaia, Svetlana"]
[WhiteFideId "22737197"]
[BlackFideId "4129490"]
[WhiteElo "1944"]
[BlackElo "1971"]
[Result "1-0"]
[Round "07"]
[TimeControl "180+2"]
[Date "2022.12.27"]
[WhiteClock "0:00:04"]
[BlackClock "0:00:02"]

1. d4 {[%clk 0:03:00]}  Nf6 {[%clk 0:02:57]} 2. Nf3 {[%clk 0:03:01]}  d5 {[%clk 0:02:53]} 3. e3 {[%clk 0:03:01]}  c5 {[%clk 0:02:53]} 4. Bd3 {[%clk 0:03:00]}  Nc6 {[%clk 0:02:53]} 5. b3 {[%clk 0:03:00]}  Bg4 {[%clk 0:02:52]} 6. Bb2 {[%clk 0:02:56]}  Rc8 {[%clk 0:02:50]} 7. Nbd2 {[%clk 0:02:55]}  cxd4 {[%clk 0:02:48]} 8. exd4 {[%clk 0:02:55]}  Nb4 {[%clk 0:02:48]} 9. Bb5+ {[%clk 0:02:49]}  Bd7 {[%clk 0:02:44]} 10. Bxd7+ {[%clk 0:02:48]}  Qxd7 {[%clk 0:02:44]} 11. O-O {[%clk 0:02:47]}  Nxc2 {[%clk 0:02:37]} 12. Ne5 {[%clk 0:02:43]}  Qf5 {[%clk 0:02:35]} 13. Rc1 {[%clk 0:02:40]}  Nb4 {[%clk 0:02:27]} 14. Qe2 {[%clk 0:02:24]}  a6 {[%clk 0:01:49]} 15. a3 {[%clk 0:01:58]}  Nc6 {[%clk 0:01:46]} 16. Nxc6 {[%clk 0:01:48]}  Rxc6 {[%clk 0:01:44]} 17. Rxc6 {[%clk 0:01:47]}  bxc6 {[%clk 0:01:45]} 18. Rc1 {[%clk 0:01:48]}  Ne4 {[%clk 0:00:56]} 19. Nxe4 {[%clk 0:01:44]}  Qxe4 {[%clk 0:00:55]} 20. Qxe4 {[%clk 0:01:44]}  dxe4 {[%clk 0:00:55]} 21. Rxc6 {[%clk 0:01:45]}  Kd7 {[%clk 0:00:54]} 22. Rxa6 {[%clk 0:01:44]}  g6 {[%clk 0:00:49]} 23. d5 {[%clk 0:01:43]}  f6 {[%clk 0:00:47]} 24. Re6 {[%clk 0:01:39]}  Bh6 {[%clk 0:00:38]} 25. Rxe4 {[%clk 0:01:35]}  Rc8 {[%clk 0:00:34]} 26. Re2 {[%clk 0:01:29]}  Kd6 {[%clk 0:00:31]} 27. h4 {[%clk 0:01:23]}  Rc5 {[%clk 0:00:25]} 28. g3 {[%clk 0:01:10]}  Rxd5 {[%clk 0:00:24]} 29. Rc2 {[%clk 0:01:08]}  e5 {[%clk 0:00:24]} 30. a4 {[%clk 0:01:04]}  Bd2 {[%clk 0:00:22]} 31. Ba3+ {[%clk 0:01:02]}  Kd7 {[%clk 0:00:20]} 32. b4 {[%clk 0:00:58]}  Rd4 {[%clk 0:00:19]} 33. b5 {[%clk 0:00:53]}  Ba5 {[%clk 0:00:14]} 34. Bc5 {[%clk 0:00:38]}  Rxa4 {[%clk 0:00:13]} 35. b6 {[%clk 0:00:32]}  Ra1+ {[%clk 0:00:12]} 36. Kg2 {[%clk 0:00:30]}  Rb1 {[%clk 0:00:13]} 37. Ra2 {[%clk 0:00:03]}  Bxb6 {[%clk 0:00:12]} 38. Rd2+ {[%clk 0:00:04]}  Ke6 {[%clk 0:00:10]} 39. Rd6+ {[%clk 0:00:03]}  Kf5 {[%clk 0:00:11]} 40. Rxb6 {[%clk 0:00:03]}  Rc1 {[%clk 0:00:11]} 41. Be3 {[%clk 0:00:03]}  Rc2 {[%clk 0:00:11]} 42. Rb7 {[%clk 0:00:03]}  h5 {[%clk 0:00:11]} 43. Rb6 {[%clk 0:00:03]}  g5 {[%clk 0:00:10]} 44. hxg5 {[%clk 0:00:03]}  fxg5 {[%clk 0:00:11]} 45. Rb5 {[%clk 0:00:04]}  Re2 {[%clk 0:00:10]} 46. Kf3 {[%clk 0:00:04]}  Rc2 {[%clk 0:00:09]} 47. Bd4 {[%clk 0:00:04]}  g4+ {[%clk 0:00:09]} 48. Kg2 {[%clk 0:00:03]}  Ke4 {[%clk 0:00:08]} 49. Bxe5 {[%clk 0:00:04]}  Ra2 {[%clk 0:00:04]} 50. Bf4 {[%clk 0:00:04]}  h4 {[%clk 0:00:04]} 51. Rb4+ {[%clk 0:00:03]}  Kf5 {[%clk 0:00:04]} 52. gxh4 {[%clk 0:00:03]}  Ra3 {[%clk 0:00:05]} 53. Be3 {[%clk 0:00:03]}  Rd3 {[%clk 0:00:04]} 54. Kg3 {[%clk 0:00:04]}  Rd1 {[%clk 0:00:04]} 55. Rf4+ {[%clk 0:00:03]}  Ke5 {[%clk 0:00:04]} 56. Rxg4 {[%clk 0:00:04]}  Rg1+ {[%clk 0:00:04]} 57. Kf3 {[%clk 0:00:04]}  Rh1 {[%clk 0:00:05]} 58. Bf4+ {[%clk 0:00:04]}  Kf5 {[%clk 0:00:05]} 59. Bg3 {[%clk 0:00:05]}  Rh3 {[%clk 0:00:04]} 60. Rg8 {[%clk 0:00:05]}  Rh1 {[%clk 0:00:04]} 61. Kg2 {[%clk 0:00:05]}  Rd1 {[%clk 0:00:03]} 62. h5 {[%clk 0:00:05]}  Kf6 {[%clk 0:00:03]} 63. Bf4 {[%clk 0:00:04]}  Rd4 {[%clk 0:00:02]} 64. Be3 {[%clk 0:00:04]} 1-0


[Site "https://www.chess.com"]

[Event "Titled Tuesday Blitz December 27 Early 2022"]
[White "Aravindh, Chithambaram VR."]
[Black "Bilych, Olexiy"]
[WhiteFideId "5072786"]
[BlackFideId "14156504"]
[WhiteElo "2633"]
[BlackElo "2441"]
[Result "1-0"]
[Round "07"]
[TimeControl "180+2"]
[Date "2022.12.27"]
[WhiteClock "0:00:18"]
[BlackClock "0:00:21"]

1. b3 {[%clk 0:02:56]}  e5 {[%clk 0:02:59]} 2. Bb2 {[%clk 0:02:56]}  Nc6 {[%clk 0:02:59]} 3. e3 {[%clk 0:02:56]}  d5 {[%clk 0:02:59]} 4. Bb5 {[%clk 0:02:55]}  Ne7 {[%clk 0:03:00]} 5. Bxe5 {[%clk 0:02:51]}  a6 {[%clk 0:02:59]} 6. Bxc6+ {[%clk 0:02:41]}  Nxc6 {[%clk 0:03:00]} 7. Bg3 {[%clk 0:02:20]}  h5 {[%clk 0:03:00]} 8. h4 {[%clk 0:02:20]}  d4 {[%clk 0:03:00]} 9. Nf3 {[%clk 0:02:11]}  Bg4 {[%clk 0:02:59]} 10. O-O {[%clk 0:02:02]}  g5 {[%clk 0:02:45]} 11. exd4 {[%clk 0:01:59]}  gxh4 {[%clk 0:02:33]} 12. Qe1+ {[%clk 0:01:57]}  Be7 {[%clk 0:02:29]} 13. Nxh4 {[%clk 0:01:52]}  Nxd4 {[%clk 0:02:28]} 14. Nc3 {[%clk 0:01:46]}  O-O {[%clk 0:02:16]} 15. Qe4 {[%clk 0:01:33]}  Nxc2 {[%clk 0:01:47]} 16. Nf5 {[%clk 0:01:19]}  Bxf5 {[%clk 0:01:32]} 17. Qxf5 {[%clk 0:01:20]}  Nxa1 {[%clk 0:01:33]} 18. Be5 {[%clk 0:00:56]}  Qxd2 {[%clk 0:01:08]} 19. Qxh5 {[%clk 0:00:51]}  f6 {[%clk 0:01:06]} 20. Ne4 {[%clk 0:00:42]}  Qc2 {[%clk 0:00:49]} 21. Qg6+ {[%clk 0:00:35]}  Kh8 {[%clk 0:00:49]} 22. Bxa1 {[%clk 0:00:34]}  Rad8 {[%clk 0:00:39]} 23. g3 {[%clk 0:00:23]}  Rd1 {[%clk 0:00:38]} 24. Qh5+ {[%clk 0:00:23]}  Kg7 {[%clk 0:00:37]} 25. Qg4+ {[%clk 0:00:23]}  Kf7 {[%clk 0:00:25]} 26. Rxd1 {[%clk 0:00:24]}  Qxa2 {[%clk 0:00:21]} 27. Qh5+ {[%clk 0:00:21]}  Kg7 {[%clk 0:00:21]} 28. Ng5 {[%clk 0:00:18]} 1-0


[Site "https://www.chess.com"]